Workbook

Sheet Enunciado
A1: Considere um solo muito susceptível à erosão por sulcos, com um comprimento de encosta de 64 m e um declive médio de 15 %. Calcular LS se (adaptado de Haan et al., 1994):
A2: a) O declive for uniforme.
A3: b) O declive for convexo, com declives de 10, 15 e 20 %, em 3 segmentos de igual comprimento.
A4: c) O declive for côncavo, com declives de 20, 15 e 10 %, em 3 segmentos de igual comprimento.
A5: Usar as equações de RUSLE

Sheet A título de comparação com USLE
A1: Cálculos com USLE
A3: I - Declive uniforme
A5: s = | B5: 15 | C5: %
A6: l = | B6: 64 | C6: m
A7: a = | B7: =DEGREES(ATAN(B5/100)) -> 8.53076561 | C7: o
A8: sena = | B8: =SIN(RADIANS(B7)) -> 0.1483404529
A10: n = | B10: =0.6*(1-EXP(-35.835*B5/100)) -> 0.5972221433
A11: L = | B11: =(B6/22.1)^B10 -> 1.88707795
A12: S = | B12: =65.41*B8^2+4.56*B8+0.065 -> 2.180772319
A13: LS = | B13: =B11*B12 -> 4.115287357
A15: II - Encosta convexa
A17: Segmento | B17: li (m) | C17: Declive (%) | D17: a (o) | E17: sena | F17: S | G17: n | I17: LiSi
B18: 0
A19: 1 | B19: =64/3 -> 21.33333333 | C19: 10 | D19: =DEGREES(ATAN(C19/100)) -> 5.710593137 | E19: =SIN(RADIANS(D19)) -> 0.09950371902 | F19: =65.41*E19^2+4.56*E19+0.065 -> 1.166360721 | G19: =0.6*(1-EXP(-35.835*C19/100)) -> 0.5833330177 | H19: =(B19^(G19+1)-B18^(G19+1))/($B$21*22.1^G19) -> 0.3265383371 | I19: =H19*F19 -> 0.3808614903
A20: 2 | B20: =2*B19 -> 42.66666667 | C20: 15 | D20: =DEGREES(ATAN(C20/100)) -> 8.53076561 | E20: =SIN(RADIANS(D20)) -> 0.1483404529 | F20: =65.41*E20^2+4.56*E20+0.065 -> 2.180772319 | G20: =0.6*(1-EXP(-35.835*C20/100)) -> 0.5972221433 | H20: =(B20^(G20+1)-B19^(G20+1))/($B$21*22.1^G20) -> 0.6611123784 | I20: =H20*F20 -> 1.441735574
A21: 3 | B21: =64 -> 64 | C21: 20 | D21: 11.30993247 | E21: 0.1961161351 | F21: =65.41*E21^2+4.56*E21+0.065 -> 3.475058807 | G21: 0.5995370195 | H21: =(B21^(G21+1)-B20^(G21+1))/($B$21*22.1^G21) -> 0.9027330223 | I21: =H21*F21 -> 3.13705034
H22: LS = | I22: =SUM(I19:I21) -> 4.959647404
A24: II - Encosta côncava
A26: Segmento | B26: li (m) | C26: Declive (%) | D26: a (o) | E26: sena | F26: S | G26: n | I26: LiSi
B27: 0
A28: 1 | B28: =64/3 -> 21.33333333 | C28: 20 | D28: =DEGREES(ATAN(C28/100)) -> 11.30993247 | E28: =SIN(RADIANS(D28)) -> 0.1961161351 | F28: =65.41*E28^2+4.56*E28+0.065 -> 3.475058807 | G28: =0.6*(1-EXP(-35.835*C28/100)) -> 0.5995370195 | H28: =(B28^(G28+1)-B27^(G28+1))/($B$21*22.1^G28) -> 0.3263515741 | I28: =H28*F28 -> 1.134090912
A29: 2 | B29: =2*B28 -> 42.66666667 | C29: 15 | D29: =DEGREES(ATAN(C29/100)) -> 8.53076561 | E29: =SIN(RADIANS(D29)) -> 0.1483404529 | F29: =65.41*E29^2+4.56*E29+0.065 -> 2.180772319 | G29: =0.6*(1-EXP(-35.835*C29/100)) -> 0.5972221433 | H29: =(B29^(G29+1)-B28^(G29+1))/($B$21*22.1^G29) -> 0.6611123784 | I29: =H29*F29 -> 1.441735574
A30: 3 | B30: =64 -> 64 | C30: 10 | D30: 5.710593137 | E30: 0.09950371902 | F30: =65.41*E30^2+4.56*E30+0.065 -> 1.166360721 | G30: 0.5833330177 | H30: =(B30^(G30+1)-B29^(G30+1))/($B$21*22.1^G30) -> 0.8809044527 | I30: =H30*F30 -> 1.027452353
H31: LS = | I31: =SUM(I28:I30) -> 3.603278839

Sheet RUSLE
A1: Cálculos com RUSLE
A3: I - Declive uniforme
A5: s = | B5: 15 | C5: %
A6: l = | B6: 64 | C6: m
A7: a = | B7: =DEGREES(ATAN(B5/100)) -> 8.53076561 | C7: o
A8: sena = | B8: =SIN(RADIANS(B7)) -> 0.1483404529
A10: bmod = | B10: =11.16*B8/(3*B8^0.8+0.56) -> 1.366107908
A11: b = | B11: =2*B10 -> 2.732215816 | D11: (solo muito susceptível à erosão por sulcos)
A12: n = | B12: =B11/(1+B11) -> 0.7320626541
A13: L = | B13: =(B6/22.1)^B12 -> 2.177998265
A14: S = | B14: =IF(B6<4.6,3*B8^0.8+0.56,IF(B8<0.09,10.8*B8+0.03,16.8*B8-0.5)) -> 1.992119609 | E14: pois
A15: LS = | B15: =B13*B14 -> 4.338833053
A17: II - Encosta convexa
A19: Segmento | B19: li (m) | C19: Declive (%) | D19: a (o) | E19: sena | F19: S | G19: bmod | H19: b | I19: n | K19: LiSi
B20: 0
A21: 1 | B21: =64/3 -> 21.33333333 | C21: 10 | D21: =DEGREES(ATAN(C21/100)) -> 5.710593137 | E21: =SIN(RADIANS(D21)) -> 0.09950371902 | F21: =IF(B21<4.6,3*E21^0.8+0.56,IF(E21<0.09,10.8*E21+0.03,16.8*E21-0.5)) -> 1.17166248 | G21: =11.16*E21/(3*E21^0.8+0.56) -> 1.074384434 | H21: =2*G21 -> 2.148768868 | I21: =H21/(1+H21) -> 0.6824155593 | J21: =(B21^(I21+1)-B20^(I21+1))/($B$23*22.1^I21) -> 0.3253980074 | K21: =J21*F21 -> 0.3812566362
A22: 2 | B22: =2*B21 -> 42.66666667 | C22: 15 | D22: =DEGREES(ATAN(C22/100)) -> 8.53076561 | E22: =SIN(RADIANS(D22)) -> 0.1483404529 | F22: =IF(B22<4.6,3*E22^0.8+0.56,IF(E22<0.09,10.8*E22+0.03,16.8*E22-0.5)) -> 1.992119609 | G22: =11.16*E22/(3*E22^0.8+0.56) -> 1.366107908 | H22: =2*G22 -> 2.732215816 | I22: =H22/(1+H22) -> 0.7320626541 | J22: =(B22^(I22+1)-B21^(I22+1))/($B$23*22.1^I22) -> 0.7542588159 | K22: =J22*F22 -> 1.502573778
A23: 3 | B23: =64 -> 64 | C23: 20 | D23: 11.30993247 | E23: 0.1961161351 | F23: =IF(B23<4.6,3*E23^0.8+0.56,IF(E23<0.09,10.8*E23+0.03,16.8*E23-0.5)) -> 2.79475107 | G23: 1.591805685 | H23: 3.183611369 | I23: 0.7609720618 | J23: 1.146183398 | K23: 3.203297278
J24: LS = | K24: =SUM(K21:K23) -> 5.087127691
A26: II - Encosta côncava
A28: Segmento | B28: li (m) | C28: Declive (%) | D28: a (o) | E28: sena | F28: S | G28: bmod | H28: b | I28: n | K28: LiSi
B29: 0
A30: 1 | B30: =64/3 -> 21.33333333 | C30: 20 | D30: =DEGREES(ATAN(C30/100)) -> 11.30993247 | E30: =SIN(RADIANS(D30)) -> 0.1961161351 | F30: =IF(B30<4.6,3*E30^0.8+0.56,IF(E30<0.09,10.8*E30+0.03,16.8*E30-0.5)) -> 2.79475107 | G30: =11.16*E30/(3*E30^0.8+0.56) -> 1.591805685 | H30: =2*G30 -> 3.183611369 | I30: =H30/(1+H30) -> 0.7609720618 | J30: =(B30^(I30+1)-B29^(I30+1))/($B$23*22.1^I30) -> 0.3244967405 | K30: =J30*F30 -> 0.9068876128
A31: 2 | B31: =2*B30 -> 42.66666667 | C31: 15 | D31: =DEGREES(ATAN(C31/100)) -> 8.53076561 | E31: =SIN(RADIANS(D31)) -> 0.1483404529 | F31: =IF(B31<4.6,3*E31^0.8+0.56,IF(E31<0.09,10.8*E31+0.03,16.8*E31-0.5)) -> 1.992119609 | G31: =11.16*E31/(3*E31^0.8+0.56) -> 1.366107908 | H31: =2*G31 -> 2.732215816 | I31: =H31/(1+H31) -> 0.7320626541 | J31: =(B31^(I31+1)-B30^(I31+1))/($B$23*22.1^I31) -> 0.7542588159 | K31: =J31*F31 -> 1.502573778
A32: 3 | B32: =64 -> 64 | C32: 10 | D32: 5.710593137 | E32: 0.09950371902 | F32: =IF(B32<4.6,3*E32^0.8+0.56,IF(E32<0.09,10.8*E32+0.03,16.8*E32-0.5)) -> 1.17166248 | G32: 1.074384434 | H32: 2.148768868 | I32: 0.6824155593 | J32: 1.021590374 | K32: 1.196959111
J33: LS = | K33: =SUM(K30:K32) -> 3.606420501

Sheet Comparação
B2: LS
A3: Encosta com declive | B3: USLE | C3: RUSLE
A4: Côncavo | B4: ='A título de comparação com USLE'!I31 -> 3.603278839 | C4: =RUSLE!K33 -> 3.606420501
A5: Uniforme | B5: ='A título de comparação com USLE'!B13 -> 4.115287357 | C5: =RUSLE!B15 -> 4.338833053
A6: Convexo | B6: ='A título de comparação com USLE'!I22 -> 4.959647404 | C6: =RUSLE!K24 -> 5.087127691
